[Event "Titled Tuesday Blitz March 29 Early 2022"]
[White "Ovezdurdyyeva, Jemal"]
[Black "Derraugh, Geordie"]
[WhiteFideId "14001888"]
[BlackFideId "2603950"]
[WhiteElo "1946"]
[BlackElo "2116"]
[Result "0-1"]
[Round "05"]
[TimeControl "180+1"]
[Date "2022.03.30"]
[WhiteClock "0:00:12"]
[BlackClock "0:00:14"]

1. e4 {[%clk 0:03:00]}  c5 {[%clk 0:02:57]} 2. Nf3 {[%clk 0:02:59]}  d6 {[%clk 0:02:58]} 3. d4 {[%clk 0:02:59]}  cxd4 {[%clk 0:02:59]} 4. Nxd4 {[%clk 0:03:00]}  Nf6 {[%clk 0:02:59]} 5. Nc3 {[%clk 0:03:00]}  a6 {[%clk 0:03:00]} 6. Bc4 {[%clk 0:03:00]}  e6 {[%clk 0:03:00]} 7. O-O {[%clk 0:02:58]}  Qc7 {[%clk 0:02:56]} 8. Bb3 {[%clk 0:02:57]}  Be7 {[%clk 0:02:57]} 9. Kh1 {[%clk 0:02:52]}  O-O {[%clk 0:02:51]} 10. f4 {[%clk 0:02:45]}  b5 {[%clk 0:02:50]} 11. Qe2 {[%clk 0:02:43]}  b4 {[%clk 0:02:46]} 12. Nd1 {[%clk 0:02:38]}  Bb7 {[%clk 0:02:16]} 13. Nf2 {[%clk 0:02:29]}  Re8 {[%clk 0:02:11]} 14. e5 {[%clk 0:02:22]}  Nfd7 {[%clk 0:02:06]} 15. f5 {[%clk 0:02:09]}  dxe5 {[%clk 0:01:58]} 16. fxe6 {[%clk 0:02:09]}  exd4 {[%clk 0:01:28]} 17. exf7+ {[%clk 0:02:09]}  Kf8 {[%clk 0:01:29]} 18. fxe8=Q+ {[%clk 0:02:09]}  Kxe8 {[%clk 0:01:29]} 19. Bg5 {[%clk 0:01:55]}  Qe5 {[%clk 0:01:13]} 20. Rae1 {[%clk 0:01:24]}  Qxg5 {[%clk 0:01:06]} 21. Ne4 {[%clk 0:01:13]}  Bxe4 {[%clk 0:00:36]} 22. Qxe4 {[%clk 0:01:14]}  Ra7 {[%clk 0:00:37]} 23. Qxh7 {[%clk 0:00:54]}  Kd8 {[%clk 0:00:24]} 24. Rf7 {[%clk 0:00:48]}  Nc6 {[%clk 0:00:20]} 25. Ba4 {[%clk 0:00:45]}  Nde5 {[%clk 0:00:20]} 26. Rxg7 {[%clk 0:00:41]}  Qd2 {[%clk 0:00:20]} 27. Qe4 {[%clk 0:00:32]}  Rd7 {[%clk 0:00:18]} 28. h3 {[%clk 0:00:24]}  Kc7 {[%clk 0:00:18]} 29. Re2 {[%clk 0:00:20]}  Qd1+ {[%clk 0:00:17]} 30. Kh2 {[%clk 0:00:20]}  d3 {[%clk 0:00:14]} 31. cxd3 {[%clk 0:00:19]}  Qxa4 {[%clk 0:00:15]} 32. b3 {[%clk 0:00:12]}  Qb5 {[%clk 0:00:14]} 0-1


[Site "https://www.chess.com"]

[Event "Titled Tuesday Blitz March 29 Early 2022"]
[White "Pajeken, Jakob Leon"]
[Black "Ronka, Erik"]
[WhiteFideId "12942839"]
[BlackFideId "505080"]
[WhiteElo "2351"]
[BlackElo "2264"]
[Result "0-1"]
[Round "05"]
[TimeControl "180+1"]
[Date "2022.03.30"]
[WhiteClock "0:00:08"]
[BlackClock "0:00:03"]

1. d4 {[%clk 0:03:00]}  d5 {[%clk 0:02:59]} 2. c4 {[%clk 0:03:00]}  c6 {[%clk 0:02:59]} 3. Nf3 {[%clk 0:02:59]}  Nf6 {[%clk 0:02:59]} 4. e3 {[%clk 0:02:58]}  Bf5 {[%clk 0:02:59]} 5. Bd3 {[%clk 0:02:57]}  Bxd3 {[%clk 0:02:58]} 6. Qxd3 {[%clk 0:02:58]}  e6 {[%clk 0:02:59]} 7. O-O {[%clk 0:02:59]}  Nbd7 {[%clk 0:02:59]} 8. Nc3 {[%clk 0:02:59]}  Be7 {[%clk 0:02:59]} 9. e4 {[%clk 0:02:59]}  dxe4 {[%clk 0:02:59]} 10. Nxe4 {[%clk 0:02:59]}  Nxe4 {[%clk 0:03:00]} 11. Qxe4 {[%clk 0:03:00]}  O-O {[%clk 0:02:59]} 12. b3 {[%clk 0:02:56]}  a5 {[%clk 0:02:58]} 13. Bb2 {[%clk 0:02:56]}  a4 {[%clk 0:02:56]} 14. Rfd1 {[%clk 0:02:52]}  Nf6 {[%clk 0:02:55]} 15. Qe2 {[%clk 0:02:51]}  Qb6 {[%clk 0:02:30]} 16. d5 {[%clk 0:02:44]}  cxd5 {[%clk 0:02:18]} 17. cxd5 {[%clk 0:02:31]}  axb3 {[%clk 0:02:18]} 18. axb3 {[%clk 0:02:28]}  Rxa1 {[%clk 0:02:13]} 19. Bxa1 {[%clk 0:02:20]}  Qxb3 {[%clk 0:02:12]} 20. d6 {[%clk 0:02:20]}  Bd8 {[%clk 0:02:06]} 21. Ne5 {[%clk 0:02:16]}  h6 {[%clk 0:01:48]} 22. h4 {[%clk 0:02:14]}  Qa4 {[%clk 0:01:43]} 23. g3 {[%clk 0:02:09]}  Bb6 {[%clk 0:01:32]} 24. Nc4 {[%clk 0:01:58]}  Bd8 {[%clk 0:01:30]} 25. Rb1 {[%clk 0:01:45]}  b5 {[%clk 0:01:24]} 26. Ne5 {[%clk 0:01:43]}  b4 {[%clk 0:01:14]} 27. Nd3 {[%clk 0:01:32]}  Qa6 {[%clk 0:01:08]} 28. Be5 {[%clk 0:01:31]}  Nd7 {[%clk 0:01:04]} 29. Ra1 {[%clk 0:01:13]}  Qc4 {[%clk 0:00:58]} 30. Rc1 {[%clk 0:01:11]}  Qd5 {[%clk 0:00:57]} 31. Bf4 {[%clk 0:01:10]}  e5 {[%clk 0:00:51]} 32. Nxe5 {[%clk 0:01:00]}  Re8 {[%clk 0:00:41]} 33. Qc4 {[%clk 0:00:59]}  Rxe5 {[%clk 0:00:24]} 34. Qxd5 {[%clk 0:00:52]}  Rxd5 {[%clk 0:00:24]} 35. Rc8 {[%clk 0:00:52]}  Nf6 {[%clk 0:00:15]} 36. Rxd8+ {[%clk 0:00:52]}  Kh7 {[%clk 0:00:15]} 37. Rb8 {[%clk 0:00:51]}  Ne4 {[%clk 0:00:14]} 38. Kg2 {[%clk 0:00:50]}  b3 {[%clk 0:00:13]} 39. Kf3 {[%clk 0:00:49]}  Nxd6 {[%clk 0:00:12]} 40. Rxb3 {[%clk 0:00:45]}  Ne8 {[%clk 0:00:11]} 41. Rb7 {[%clk 0:00:44]}  Kg8 {[%clk 0:00:10]} 42. Rb8 {[%clk 0:00:43]}  Kf8 {[%clk 0:00:10]} 43. Ke4 {[%clk 0:00:42]}  Rd7 {[%clk 0:00:10]} 44. h5 {[%clk 0:00:39]}  f6 {[%clk 0:00:10]} 45. Kf5 {[%clk 0:00:38]}  Kf7 {[%clk 0:00:10]} 46. g4 {[%clk 0:00:37]}  Rd5+ {[%clk 0:00:09]} 47. Ke4 {[%clk 0:00:36]}  Rd7 {[%clk 0:00:09]} 48. Rb6 {[%clk 0:00:34]}  Re7+ {[%clk 0:00:09]} 49. Kd5 {[%clk 0:00:29]}  Rd7+ {[%clk 0:00:09]} 50. Bd6 {[%clk 0:00:25]}  Nxd6 {[%clk 0:00:05]} 51. Rxd6 {[%clk 0:00:25]}  Re7 {[%clk 0:00:06]} 52. f4 {[%clk 0:00:21]}  Ra7 {[%clk 0:00:06]} 53. Kc6 {[%clk 0:00:20]}  Ra6+ {[%clk 0:00:06]} 54. Kc7 {[%clk 0:00:18]}  Ra7+ {[%clk 0:00:06]} 55. Kd8 {[%clk 0:00:18]}  Ra4 {[%clk 0:00:06]} 56. f5 {[%clk 0:00:10]}  Rxg4 {[%clk 0:00:05]} 57. Rd7+ {[%clk 0:00:10]}  Kg8 {[%clk 0:00:05]} 58. Ke8 {[%clk 0:00:10]}  Rg5 {[%clk 0:00:04]} 59. Rf7 {[%clk 0:00:10]}  Rxf5 {[%clk 0:00:03]} 60. Rf8+ {[%clk 0:00:10]}  Kh7 {[%clk 0:00:03]} 61. Kf7 {[%clk 0:00:11]}  Rxh5 {[%clk 0:00:03]} 62. Rg8 {[%clk 0:00:11]}  Rg5 {[%clk 0:00:03]} 63. Re8 {[%clk 0:00:11]}  h5 {[%clk 0:00:03]} 64. Rg8 {[%clk 0:00:10]}  h4 {[%clk 0:00:03]} 65. Re8 {[%clk 0:00:10]}  h3 {[%clk 0:00:03]} 66. Re3 {[%clk 0:00:10]}  Rh5 {[%clk 0:00:03]} 67. Rg3 {[%clk 0:00:10]}  g5 {[%clk 0:00:03]} 68. Re3 {[%clk 0:00:07]}  h2 {[%clk 0:00:03]} 69. Re7 {[%clk 0:00:07]}  h1=Q {[%clk 0:00:03]} 70. Kxf6+ {[%clk 0:00:08]}  Kh6 {[%clk 0:00:03]} 0-1


[Site "https://www.chess.com"]

[Event "Titled Tuesday Blitz March 29 Early 2022"]
[White "Papp, Petra"]
[Black "Gurevich, Dmitry"]
[WhiteFideId "739049"]
[BlackFideId "2000407"]
[WhiteElo "2259"]
[BlackElo "2506"]
[Result "0-1"]
[Round "05"]
[TimeControl "180+1"]
[Date "2022.03.30"]
[WhiteClock "0:00:01"]
[BlackClock "0:00:48"]

1. d4 {[%clk 0:02:59]}  Nf6 {[%clk 0:02:59]} 2. c4 {[%clk 0:02:43]}  a6 {[%clk 0:02:58]} 3. g3 {[%clk 0:02:39]}  c5 {[%clk 0:02:57]} 4. Bg2 {[%clk 0:02:32]}  cxd4 {[%clk 0:02:56]} 5. Qxd4 {[%clk 0:02:30]}  g6 {[%clk 0:02:53]} 6. Nf3 {[%clk 0:02:22]}  Bg7 {[%clk 0:02:51]} 7. O-O {[%clk 0:02:21]}  O-O {[%clk 0:02:51]} 8. Nc3 {[%clk 0:02:19]}  d6 {[%clk 0:02:48]} 9. e4 {[%clk 0:02:04]}  b6 {[%clk 0:02:25]} 10. h3 {[%clk 0:01:45]}  Nbd7 {[%clk 0:02:20]} 11. Qd3 {[%clk 0:01:24]}  Bb7 {[%clk 0:02:17]} 12. Re1 {[%clk 0:01:24]}  Rc8 {[%clk 0:02:10]} 13. Rb1 {[%clk 0:01:00]}  Nc5 {[%clk 0:02:05]} 14. Qc2 {[%clk 0:00:58]}  b5 {[%clk 0:02:04]} 15. cxb5 {[%clk 0:00:39]}  axb5 {[%clk 0:01:49]} 16. a3 {[%clk 0:00:37]}  Ncxe4 {[%clk 0:01:34]} 17. Qb3 {[%clk 0:00:34]}  Nxc3 {[%clk 0:01:29]} 18. bxc3 {[%clk 0:00:34]}  Nd5 {[%clk 0:01:08]} 19. Qxb5 {[%clk 0:00:24]}  Bc6 {[%clk 0:01:05]} 20. Qb3 {[%clk 0:00:22]}  Nxc3 {[%clk 0:01:04]} 21. Rb2 {[%clk 0:00:10]}  Bd5 {[%clk 0:00:58]} 22. Qb4 {[%clk 0:00:07]}  Na2 {[%clk 0:00:52]} 23. Qf4 {[%clk 0:00:01]}  Nxc1 {[%clk 0:00:48]} 0-1


[Site "https://www.chess.com"]

[Event "Titled Tuesday Blitz March 29 Early 2022"]
[White "Piesik, Piotr"]
[Black "Pakleza, Zbigniew"]
[WhiteFideId "1136194"]
[BlackFideId "1119290"]
[WhiteElo "2190"]
[BlackElo "2467"]
[Result "1-0"]
[Round "05"]
[TimeControl "180+1"]
[Date "2022.03.29"]
[WhiteClock "0:00:35"]
[BlackClock "0:00:05"]

1. e4 {[%clk 0:03:00]}  d6 {[%clk 0:02:59]} 2. d4 {[%clk 0:02:59]}  Nf6 {[%clk 0:03:00]} 3. Nc3 {[%clk 0:02:58]}  c6 {[%clk 0:03:01]} 4. Nf3 {[%clk 0:02:58]}  Bg4 {[%clk 0:03:01]} 5. Be2 {[%clk 0:02:56]}  e6 {[%clk 0:03:00]} 6. Be3 {[%clk 0:02:55]}  Be7 {[%clk 0:03:00]} 7. Nd2 {[%clk 0:02:54]}  Bxe2 {[%clk 0:02:59]} 8. Qxe2 {[%clk 0:02:55]}  d5 {[%clk 0:02:59]} 9. O-O {[%clk 0:02:54]}  O-O {[%clk 0:02:58]} 10. f3 {[%clk 0:02:53]}  b5 {[%clk 0:02:54]} 11. a4 {[%clk 0:02:49]}  b4 {[%clk 0:02:54]} 12. Nd1 {[%clk 0:02:50]}  Nbd7 {[%clk 0:02:44]} 13. Nf2 {[%clk 0:02:49]}  a5 {[%clk 0:02:41]} 14. Nd3 {[%clk 0:02:46]}  Qb6 {[%clk 0:02:39]} 15. Qf2 {[%clk 0:02:44]}  dxe4 {[%clk 0:02:26]} 16. fxe4 {[%clk 0:02:31]}  Ng4 {[%clk 0:02:26]} 17. Qf3 {[%clk 0:02:31]}  Nxe3 {[%clk 0:02:26]} 18. Qxe3 {[%clk 0:02:32]}  Rad8 {[%clk 0:01:49]} 19. Nc4 {[%clk 0:02:30]}  Qa6 {[%clk 0:01:47]} 20. b3 {[%clk 0:02:30]}  Nb6 {[%clk 0:01:30]} 21. Nce5 {[%clk 0:02:21]}  Qb7 {[%clk 0:01:24]} 22. Rad1 {[%clk 0:02:17]}  Bd6 {[%clk 0:01:05]} 23. Nf3 {[%clk 0:02:08]}  Qc7 {[%clk 0:00:57]} 24. Qg5 {[%clk 0:02:06]}  Nc8 {[%clk 0:00:33]} 25. Nb2 {[%clk 0:01:58]}  Bf4 {[%clk 0:00:28]} 26. Qc5 {[%clk 0:01:49]}  Qb6 {[%clk 0:00:23]} 27. Nc4 {[%clk 0:01:35]}  Qxc5 {[%clk 0:00:22]} 28. dxc5 {[%clk 0:01:36]}  Bc7 {[%clk 0:00:22]} 29. Nfe5 {[%clk 0:01:32]}  Ne7 {[%clk 0:00:12]} 30. Rxd8 {[%clk 0:01:18]}  Rxd8 {[%clk 0:00:13]} 31. Nxf7 {[%clk 0:01:16]}  Rd4 {[%clk 0:00:10]} 32. Ng5 {[%clk 0:01:10]}  Rd7 {[%clk 0:00:04]} 33. Nxe6 {[%clk 0:01:09]}  h6 {[%clk 0:00:05]} 34. Rf8+ {[%clk 0:00:52]}  Kh7 {[%clk 0:00:05]} 35. Rf7 {[%clk 0:00:53]}  Kg6 {[%clk 0:00:05]} 36. Rf3 {[%clk 0:00:35]}  h5 {[%clk 0:00:05]} 37. Nf8+ {[%clk 0:00:35]} 1-0


[Site "https://www.chess.com"]

[Event "Titled Tuesday Blitz March 29 Early 2022"]
[White "Polanco Nunez, Yoel Estarling"]
[Black "Flis, Pawel"]
[WhiteFideId "6401783"]
[BlackFideId "1112864"]
[WhiteElo "2132"]
[BlackElo "1735"]
[Result "1-0"]
[Round "05"]
[TimeControl "180+1"]
[Date "2022.03.30"]
[WhiteClock "0:00:23"]
[BlackClock "0:00:05"]

1. d4 {[%clk 0:03:00]}  Nf6 {[%clk 0:02:59]} 2. c4 {[%clk 0:03:00]}  c5 {[%clk 0:02:59]} 3. d5 {[%clk 0:03:00]}  b5 {[%clk 0:02:59]} 4. cxb5 {[%clk 0:03:00]}  a6 {[%clk 0:03:00]} 5. bxa6 {[%clk 0:03:01]}  g6 {[%clk 0:02:59]} 6. Nc3 {[%clk 0:03:01]}  Bg7 {[%clk 0:02:58]} 7. Nf3 {[%clk 0:03:00]}  Bxa6 {[%clk 0:02:55]} 8. e4 {[%clk 0:03:00]}  Bxf1 {[%clk 0:02:55]} 9. Kxf1 {[%clk 0:03:01]}  d6 {[%clk 0:02:55]} 10. g3 {[%clk 0:03:00]}  O-O {[%clk 0:02:55]} 11. Kg2 {[%clk 0:03:01]}  Nbd7 {[%clk 0:02:55]} 12. a4 {[%clk 0:02:53]}  Ra6 {[%clk 0:02:55]} 13. Qe2 {[%clk 0:02:45]}  Qa8 {[%clk 0:02:53]} 14. Nd2 {[%clk 0:02:29]}  e6 {[%clk 0:02:44]} 15. dxe6 {[%clk 0:02:27]}  fxe6 {[%clk 0:02:45]} 16. Ra3 {[%clk 0:02:23]}  d5 {[%clk 0:02:25]} 17. Re1 {[%clk 0:02:17]}  d4 {[%clk 0:02:18]} 18. Nb5 {[%clk 0:02:12]}  Qc6 {[%clk 0:02:08]} 19. Nc4 {[%clk 0:02:03]}  Ne8 {[%clk 0:01:54]} 20. f4 {[%clk 0:01:54]}  Nc7 {[%clk 0:01:37]} 21. Nxc7 {[%clk 0:01:54]}  Qxc7 {[%clk 0:01:37]} 22. e5 {[%clk 0:01:54]}  Nb6 {[%clk 0:01:29]} 23. a5 {[%clk 0:01:39]}  Qc6+ {[%clk 0:01:09]} 24. Kg1 {[%clk 0:01:39]}  Nd5 {[%clk 0:00:58]} 25. Nb6 {[%clk 0:01:03]}  Nb4 {[%clk 0:00:41]} 26. Qc4 {[%clk 0:00:54]}  d3 {[%clk 0:00:28]} 27. Bd2 {[%clk 0:00:55]}  Nc2 {[%clk 0:00:28]} 28. Qxa6 {[%clk 0:00:52]}  Nxe1 {[%clk 0:00:19]} 29. Bxe1 {[%clk 0:00:51]}  Rd8 {[%clk 0:00:12]} 30. Bd2 {[%clk 0:00:43]}  Qf3 {[%clk 0:00:10]} 31. Qc4 {[%clk 0:00:36]}  Qd1+ {[%clk 0:00:06]} 32. Kg2 {[%clk 0:00:26]}  Qxd2+ {[%clk 0:00:06]} 33. Kh3 {[%clk 0:00:27]}  Qxb2 {[%clk 0:00:05]} 34. Rxd3 {[%clk 0:00:23]} 1-0


[Site "https://www.chess.com"]

[Event "Titled Tuesday Blitz March 29 Early 2022"]
[White "Polster, Christian"]
[Black "Koellner, Ruben Gideon"]
[WhiteFideId "12965081"]
[BlackFideId "12993093"]
[WhiteElo "2321"]
[BlackElo "2530"]
[Result "1-0"]
[Round "05"]
[TimeControl "180+1"]
[Date "2022.03.30"]
[WhiteClock "0:00:44"]
[BlackClock "0:02:02"]

1. e4 {[%clk 0:03:00]}  d6 {[%clk 0:02:59]} 2. d4 {[%clk 0:02:59]}  Nf6 {[%clk 0:02:59]} 3. Nc3 {[%clk 0:02:59]}  e5 {[%clk 0:02:59]} 4. dxe5 {[%clk 0:02:52]}  dxe5 {[%clk 0:03:00]} 5. Qxd8+ {[%clk 0:02:53]}  Kxd8 {[%clk 0:03:01]} 6. Bc4 {[%clk 0:02:53]}  Be6 {[%clk 0:03:01]} 7. Bxe6 {[%clk 0:02:53]}  fxe6 {[%clk 0:03:02]} 8. f3 {[%clk 0:02:46]}  Bd6 {[%clk 0:03:02]} 9. Nh3 {[%clk 0:02:45]}  Ke7 {[%clk 0:03:02]} 10. Nf2 {[%clk 0:02:39]}  Nbd7 {[%clk 0:03:01]} 11. Nd3 {[%clk 0:02:39]}  a6 {[%clk 0:03:02]} 12. b3 {[%clk 0:02:35]}  b5 {[%clk 0:03:01]} 13. Bb2 {[%clk 0:02:33]}  Rhc8 {[%clk 0:02:58]} 14. a4 {[%clk 0:02:33]}  c6 {[%clk 0:02:53]} 15. Ke2 {[%clk 0:02:26]}  Nc5 {[%clk 0:02:53]} 16. axb5 {[%clk 0:02:19]}  a5 {[%clk 0:02:53]} 17. bxc6 {[%clk 0:02:02]}  Rxc6 {[%clk 0:02:41]} 18. Rhd1 {[%clk 0:01:51]}  Nxd3 {[%clk 0:02:34]} 19. Rxd3 {[%clk 0:01:52]}  Nd7 {[%clk 0:02:32]} 20. Rad1 {[%clk 0:01:34]}  Nc5 {[%clk 0:02:31]} 21. Rxd6 {[%clk 0:01:21]}  Rxd6 {[%clk 0:02:32]} 22. Ba3 {[%clk 0:01:21]}  Rc8 {[%clk 0:02:29]} 23. Rxd6 {[%clk 0:01:18]}  Kxd6 {[%clk 0:02:26]} 24. Na4 {[%clk 0:01:18]}  Rc7 {[%clk 0:02:21]} 25. Bxc5+ {[%clk 0:01:18]}  Rxc5 {[%clk 0:02:22]} 26. Nxc5 {[%clk 0:01:18]}  Kxc5 {[%clk 0:02:23]} 27. c3 {[%clk 0:01:10]}  g6 {[%clk 0:02:23]} 28. Kd3 {[%clk 0:01:08]}  g5 {[%clk 0:02:22]} 29. Kc2 {[%clk 0:01:05]}  Kb5 {[%clk 0:02:21]} 30. Kb2 {[%clk 0:01:05]}  h6 {[%clk 0:02:21]} 31. Ka3 {[%clk 0:01:05]}  h5 {[%clk 0:02:22]} 32. c4+ {[%clk 0:01:05]}  Kc5 {[%clk 0:02:20]} 33. Ka4 {[%clk 0:01:05]}  Kb6 {[%clk 0:02:21]} 34. c5+ {[%clk 0:00:50]}  Kxc5 {[%clk 0:02:14]} 35. Kxa5 {[%clk 0:00:51]}  Kd4 {[%clk 0:02:15]} 36. b4 {[%clk 0:00:52]}  Ke3 {[%clk 0:02:16]} 37. b5 {[%clk 0:00:52]}  Kf2 {[%clk 0:02:16]} 38. b6 {[%clk 0:00:52]}  Kxg2 {[%clk 0:02:17]} 39. b7 {[%clk 0:00:52]}  Kxf3 {[%clk 0:02:18]} 40. b8=Q {[%clk 0:00:53]}  Kxe4 {[%clk 0:02:18]} 41. Qh8 {[%clk 0:00:49]}  h4 {[%clk 0:02:17]} 42. Qh5 {[%clk 0:00:49]}  Kf4 {[%clk 0:02:10]} 43. h3 {[%clk 0:00:49]}  e4 {[%clk 0:02:10]} 44. Qg4+ {[%clk 0:00:50]}  Ke3 {[%clk 0:02:05]} 45. Qxg5+ {[%clk 0:00:50]}  Kd3 {[%clk 0:02:03]} 46. Qxh4 {[%clk 0:00:49]}  e3 {[%clk 0:02:04]} 47. Qg3 {[%clk 0:00:49]}  Kd2 {[%clk 0:02:04]} 48. Qf4 {[%clk 0:00:48]}  Kd3 {[%clk 0:02:01]} 49. Qe5 {[%clk 0:00:44]}  e2 {[%clk 0:02:00]} 50. h4 {[%clk 0:00:43]}  Kd2 {[%clk 0:02:00]} 51. Qxe6 {[%clk 0:00:43]}  e1=Q {[%clk 0:02:01]} 52. Qxe1+ {[%clk 0:00:44]}  Kxe1 {[%clk 0:02:02]} 53. h5 {[%clk 0:00:44]} 1-0


[Site "https://www.chess.com"]

[Event "Titled Tuesday Blitz March 29 Early 2022"]
[White "Pourkashiyan, Atousa"]
[Black "Ravi, Teja S."]
[WhiteFideId "12502014"]
[BlackFideId "5017220"]
[WhiteElo "2247"]
[BlackElo "2412"]
[Result "1/2-1/2"]
[Round "05"]
[TimeControl "180+1"]
[Date "2022.03.30"]
[WhiteClock "0:00:06"]
[BlackClock "0:01:14"]

1. e4 {[%clk 0:03:00]}  c5 {[%clk 0:02:58]} 2. Nf3 {[%clk 0:03:00]}  d6 {[%clk 0:02:58]} 3. d4 {[%clk 0:03:00]}  cxd4 {[%clk 0:02:58]} 4. Nxd4 {[%clk 0:03:01]}  Nf6 {[%clk 0:02:59]} 5. Nc3 {[%clk 0:03:01]}  a6 {[%clk 0:02:58]} 6. Be2 {[%clk 0:03:02]}  g6 {[%clk 0:02:58]} 7. Be3 {[%clk 0:02:58]}  Bg7 {[%clk 0:02:59]} 8. O-O {[%clk 0:02:57]}  O-O {[%clk 0:02:59]} 9. Qd2 {[%clk 0:02:57]}  Nc6 {[%clk 0:03:00]} 10. Rad1 {[%clk 0:02:55]}  Ng4 {[%clk 0:03:00]} 11. Bxg4 {[%clk 0:02:55]}  Bxg4 {[%clk 0:03:00]} 12. f3 {[%clk 0:02:55]}  Bd7 {[%clk 0:03:00]} 13. Nd5 {[%clk 0:02:55]}  Rc8 {[%clk 0:02:58]} 14. c4 {[%clk 0:02:53]}  Nxd4 {[%clk 0:02:53]} 15. Bxd4 {[%clk 0:02:54]}  Rxc4 {[%clk 0:02:54]} 16. Bb6 {[%clk 0:02:43]}  Qe8 {[%clk 0:02:50]} 17. Qg5 {[%clk 0:02:10]}  f6 {[%clk 0:02:37]} 18. Qd2 {[%clk 0:02:02]}  Be6 {[%clk 0:02:34]} 19. b3 {[%clk 0:01:43]}  Rc6 {[%clk 0:02:29]} 20. Bd4 {[%clk 0:01:43]}  Qd7 {[%clk 0:02:12]} 21. Rc1 {[%clk 0:01:40]}  Bxd5 {[%clk 0:02:10]} 22. exd5 {[%clk 0:01:40]}  Rxc1 {[%clk 0:02:10]} 23. Rxc1 {[%clk 0:01:41]}  Rc8 {[%clk 0:02:11]} 24. Re1 {[%clk 0:01:41]}  b5 {[%clk 0:01:53]} 25. Qe2 {[%clk 0:01:36]}  Kf7 {[%clk 0:01:52]} 26. h4 {[%clk 0:01:26]}  h5 {[%clk 0:01:50]} 27. Kh2 {[%clk 0:01:10]}  Rc7 {[%clk 0:01:51]} 28. Bb6 {[%clk 0:00:58]}  Rb7 {[%clk 0:01:49]} 29. Bd4 {[%clk 0:00:59]}  Qf5 {[%clk 0:01:50]} 30. Qe6+ {[%clk 0:00:40]}  Qxe6 {[%clk 0:01:50]} 31. Rxe6 {[%clk 0:00:41]}  Rc7 {[%clk 0:01:47]} 32. Bb6 {[%clk 0:00:40]}  Rc2 {[%clk 0:01:45]} 33. a4 {[%clk 0:00:40]}  Rc3 {[%clk 0:01:39]} 34. axb5 {[%clk 0:00:33]}  axb5 {[%clk 0:01:36]} 35. Re3 {[%clk 0:00:28]}  Rxe3 {[%clk 0:01:30]} 36. Bxe3 {[%clk 0:00:29]}  f5 {[%clk 0:01:31]} 37. Kg1 {[%clk 0:00:22]}  e6 {[%clk 0:01:27]} 38. dxe6+ {[%clk 0:00:20]}  Kxe6 {[%clk 0:01:28]} 39. Kf2 {[%clk 0:00:20]}  Kd5 {[%clk 0:01:28]} 40. Ke2 {[%clk 0:00:19]}  Bd4 {[%clk 0:01:29]} 41. Bg5 {[%clk 0:00:17]}  Ke6 {[%clk 0:01:24]} 42. Kd3 {[%clk 0:00:18]}  Bf6 {[%clk 0:01:24]} 43. Bxf6 {[%clk 0:00:06]}  Kxf6 {[%clk 0:01:24]} 44. Kd4 {[%clk 0:00:06]}  Ke6 {[%clk 0:01:25]} 45. f4 {[%clk 0:00:01]}  Kd7 {[%clk 0:01:24]} 46. Kd5 {[%clk 0:00:02]}  Kc7 {[%clk 0:01:23]} 47. b4 {[%clk 0:00:02]}  Kd7 {[%clk 0:01:24]} 48. Kd4 {[%clk 0:00:01]}  Kc6 {[%clk 0:01:23]} 49. Ke3 {[%clk 0:00:01]}  Kd5 {[%clk 0:01:22]} 50. Kd3 {[%clk 0:00:01]}  Ke6 {[%clk 0:01:22]} 51. Kd4 {[%clk 0:00:02]}  Kf6 {[%clk 0:01:21]} 52. Ke3 {[%clk 0:00:02]}  Ke6 {[%clk 0:01:21]} 53. Kd4 {[%clk 0:00:03]}  d5 {[%clk 0:01:21]} 54. Ke3 {[%clk 0:00:03]}  Kd6 {[%clk 0:01:20]} 55. Kd4 {[%clk 0:00:03]}  Ke6 {[%clk 0:01:16]} 56. Ke3 {[%clk 0:00:04]}  Kd7 {[%clk 0:01:14]} 57. Kd4 {[%clk 0:00:04]}  Kd6 {[%clk 0:01:14]} 58. Ke3 {[%clk 0:00:05]}  Kc6 {[%clk 0:01:13]} 59. Kd4 {[%clk 0:00:05]}  Kd6 {[%clk 0:01:14]} 60. Ke3 {[%clk 0:00:06]}  Ke7 {[%clk 0:01:14]} 61. Kd4 {[%clk 0:00:06]}  Ke6 {[%clk 0:01:14]} 1/2-1/2


[Site "https://www.chess.com"]

[Event "Titled Tuesday Blitz March 29 Early 2022"]
[White "Reprintsev, Alexander"]
[Black "volunteers1998"]
[WhiteFideId "14100541"]
[WhiteElo "2108"]
[BlackElo "2287"]
[Result "1/2-1/2"]
[Round "05"]
[TimeControl "180+1"]
[Date "2022.03.30"]
[WhiteClock "0:00:42"]
[BlackClock "0:00:55"]

1. e4 {[%clk 0:02:56]}  c5 {[%clk 0:03:00]} 2. b3 {[%clk 0:02:55]}  Nc6 {[%clk 0:02:58]} 3. Bb2 {[%clk 0:02:54]}  Nf6 {[%clk 0:02:55]} 4. e5 {[%clk 0:02:35]}  Nd5 {[%clk 0:02:52]} 5. Nf3 {[%clk 0:02:32]}  e6 {[%clk 0:02:50]} 6. c4 {[%clk 0:02:29]}  Nc7 {[%clk 0:02:48]} 7. Be2 {[%clk 0:02:27]}  Be7 {[%clk 0:02:44]} 8. d4 {[%clk 0:02:27]}  cxd4 {[%clk 0:02:40]} 9. Nxd4 {[%clk 0:02:27]}  Nxe5 {[%clk 0:02:38]} 10. O-O {[%clk 0:02:22]}  d6 {[%clk 0:02:35]} 11. f4 {[%clk 0:02:17]}  Ng6 {[%clk 0:02:27]} 12. f5 {[%clk 0:02:14]}  exf5 {[%clk 0:02:26]} 13. Nxf5 {[%clk 0:02:12]}  Bxf5 {[%clk 0:02:25]} 14. Rxf5 {[%clk 0:02:12]}  O-O {[%clk 0:02:24]} 15. Bf3 {[%clk 0:02:12]}  Nh4 {[%clk 0:02:20]} 16. Rh5 {[%clk 0:01:43]}  Nxf3+ {[%clk 0:02:19]} 17. Qxf3 {[%clk 0:01:43]}  Bf6 {[%clk 0:02:20]} 18. Bxf6 {[%clk 0:01:42]}  Qxf6 {[%clk 0:02:19]} 19. Qxf6 {[%clk 0:01:42]}  gxf6 {[%clk 0:02:18]} 20. Nc3 {[%clk 0:01:42]}  Rfe8 {[%clk 0:02:13]} 21. Rd1 {[%clk 0:01:41]}  Re6 {[%clk 0:02:08]} 22. Nd5 {[%clk 0:01:24]}  Nxd5 {[%clk 0:02:06]} 23. Rhxd5 {[%clk 0:01:25]}  Rae8 {[%clk 0:01:57]} 24. Rxd6 {[%clk 0:01:23]}  Rxd6 {[%clk 0:01:55]} 25. Rxd6 {[%clk 0:01:23]}  Re2 {[%clk 0:01:54]} 26. Rd7 {[%clk 0:01:10]}  Rxa2 {[%clk 0:01:51]} 27. Rxb7 {[%clk 0:01:10]}  a5 {[%clk 0:01:47]} 28. c5 {[%clk 0:00:59]}  Rc2 {[%clk 0:01:45]} 29. Rb5 {[%clk 0:00:59]}  Rc3 {[%clk 0:01:40]} 30. Kf2 {[%clk 0:00:59]}  Kf8 {[%clk 0:01:36]} 31. Ke2 {[%clk 0:00:59]}  Rc2+ {[%clk 0:01:34]} 32. Kd3 {[%clk 0:00:58]}  Rxg2 {[%clk 0:01:33]} 33. Rxa5 {[%clk 0:00:58]}  Rxh2 {[%clk 0:01:30]} 34. c6 {[%clk 0:00:57]}  Ke7 {[%clk 0:01:29]} 35. b4 {[%clk 0:00:57]}  Kd6 {[%clk 0:01:26]} 36. b5 {[%clk 0:00:57]}  Rb2 {[%clk 0:01:20]} 37. Kc4 {[%clk 0:00:55]}  Rc2+ {[%clk 0:01:18]} 38. Kb3 {[%clk 0:00:55]}  Rc1 {[%clk 0:01:16]} 39. Ra7 {[%clk 0:00:55]}  h5 {[%clk 0:01:14]} 40. Rxf7 {[%clk 0:00:51]}  Kc5 {[%clk 0:01:12]} 41. Rb7 {[%clk 0:00:46]}  Kd6 {[%clk 0:01:10]} 42. Rh7 {[%clk 0:00:45]}  Kc5 {[%clk 0:01:08]} 43. Rxh5+ {[%clk 0:00:45]}  Kb6 {[%clk 0:01:06]} 44. Rf5 {[%clk 0:00:45]}  Rb1+ {[%clk 0:01:04]} 45. Kc4 {[%clk 0:00:45]}  Rc1+ {[%clk 0:01:02]} 46. Kd5 {[%clk 0:00:44]}  Kxb5 {[%clk 0:00:59]} 47. Kd6+ {[%clk 0:00:44]}  Kb6 {[%clk 0:00:58]} 48. Rxf6 {[%clk 0:00:42]}  Rxc6+ {[%clk 0:00:55]} 49. Ke5 {[%clk 0:00:42]}  Rxf6 {[%clk 0:00:55]} 50. Kxf6 {[%clk 0:00:42]} 1/2-1/2


[Site "https://www.chess.com"]